fUST/lending_fUST_20240219
["ID","MTS","AMOUNT","RATE_DAILY","PERIOD"]
[314406468,1708296645906,-500.0,0.00028219,2]
[314406470,1708296645915,-500.0,0.00028219,2]
[314406471,1708296645925,-500.0,0.00028219,2]
[314406472,1708296645934,-500.0,0.00028219,2]
[314406473,1708296645943,-500.0,0.00028219,2]
[314406474,1708296645952,-588.55,0.00028219,2]
[314406475,1708296645960,-500.0,0.00028219,2]
[314406476,1708296645969,-500.0,0.00028219,2]
[314406477,1708296645978,-500.0,0.00028219,2]
[314406478,1708296645987,-500.0,0.00028219,2]
[314406479,1708296645996,-678.04,0.00028219,2]
[314406480,1708296646005,-4874.36,0.00028219,2]
[314406481,1708296646014,-500.0,0.00028219,2]
[314406482,1708296646023,-4159.06,0.00028219,2]
[314406483,1708296646032,-500.0,0.00028219,2]
[314406484,1708296646041,-579.78,0.00028219,2]
[314406485,1708296646049,-500.0,0.00028219,2]
[314406486,1708296646058,-633.01,0.00028219,2]
[314406487,1708296646067,-500.0,0.00028219,2]
[314406488,1708296646077,-775.0,0.00028219,2]
[314406489,1708296646085,-562.39804003,0.00028219,2]
[314406490,1708296646094,-858.93,0.00028219,2]
[314406491,1708296646103,-4949.8,0.00028219,2]
[314406492,1708296646112,-500.0,0.00028219,2]
[314406493,1708296646121,-500.0,0.00028219,2]
[314406494,1708296646130,-500.0,0.00028219,2]
[314406495,1708296646148,-2740.77,0.00028219,2]
[314406497,1708296646160,-865.36,0.00028219,2]
[314406498,1708296646170,-1101.44,0.00028219,2]
[314406500,1708296646179,-3130.08,0.00028219,2]
[314406501,1708296646188,-500.0,0.00028219,2]
[314406503,1708296646198,-775.48,0.00028219,2]
[314406504,1708296646207,-977.56,0.00028219,2]
[314406505,1708296646217,-5459.19,0.00028219,2]
[314406506,1708296646227,-961.66,0.00028219,2]
[314406507,1708296646237,-500.0,0.00028219,2]
[314406508,1708296646246,-6277.19,0.00028219,2]
[314406509,1708296646257,-500.0,0.00028219,2]
[314406510,1708296646266,-640.18,0.00028219,2]
[314406511,1708296646275,-500.0,0.00028219,2]
[314406512,1708296646285,-894.19,0.00028219,2]
[314406513,1708296646295,-300.0,0.00028249,2]
[314406514,1708296646305,-300.0,0.00028408,2]
[314406515,1708296646315,-363.36,0.00028457,3]
[314406516,1708296646325,-835.02,0.00028493,2]
[314406517,1708296646335,-500.0,0.00028493,2]
[314406518,1708296646345,-500.0,0.00028493,2]
[314406519,1708296646354,-500.0,0.00028493,2]
[314406520,1708296646364,-500.0,0.00028493,2]
[314406521,1708296646374,-500.0,0.00028493,2]
[314406522,1708296646383,-588.55,0.00028493,2]
[314406523,1708296646393,-500.0,0.00028493,2]
[314406524,1708296646403,-500.0,0.00028493,2]
[314406525,1708296646412,-500.0,0.00028493,2]
[314406526,1708296646422,-500.0,0.00028493,2]
[314406527,1708296646431,-678.04,0.00028493,2]
[314406528,1708296646441,-4874.36,0.00028493,2]
[314406529,1708296646450,-500.0,0.00028493,2]
[314406530,1708296646460,-4159.06,0.00028493,2]
[314406531,1708296646471,-500.0,0.00028493,2]
[314406532,1708296646484,-579.78,0.00028493,2]
[314406533,1708296646493,-500.0,0.00028493,2]
[314406534,1708296646503,-633.01,0.00028493,2]
[314406535,1708296646512,-500.0,0.00028493,2]
[314406536,1708296646522,-775.0,0.00028493,2]
[314406537,1708296646532,-858.93,0.00028493,2]
[314406538,1708296646542,-4949.8,0.00028493,2]
[314406539,1708296646551,-500.0,0.00028493,2]
[314406540,1708296646561,-500.0,0.00028493,2]
[314406541,1708296646571,-500.0,0.00028493,2]
[314406542,1708296646685,-2740.77,0.00028493,2]
[314406543,1708296646696,-865.36,0.00028493,2]
[314406544,1708296646705,-1101.44,0.00028493,2]
[314406545,1708296646714,-3130.08,0.00028493,2]
[314406546,1708296646724,-500.0,0.00028493,2]
[314406547,1708296646734,-775.48,0.00028493,2]
[314406548,1708296646744,-977.56,0.00028493,2]
[314406549,1708296646753,-5459.19,0.00028493,2]
[314406550,1708296646762,-961.66,0.00028493,2]
[314406551,1708296646772,-500.0,0.00028493,2]
[314406552,1708296646782,-6277.19,0.00028493,2]
[314406553,1708296646791,-500.0,0.00028493,2]
[314406554,1708296646804,-640.18,0.00028493,2]
[314406555,1708296646815,-500.0,0.00028493,2]
[314406556,1708296646825,-894.19,0.00028493,2]
[314406557,1708296646835,-151.0226534,0.00028563,2]
[314406558,1708296646844,-300.0,0.00028568,2]
[314406559,1708296646854,-153.0,0.0002863,2]
[314406560,1708296646863,-1000.0,0.00028677,7]
[314406561,1708296646872,-1000.0,0.00028677,7]
[314406562,1708296646882,-1000.0,0.00028677,7]
[314406563,1708296646890,-1000.0,0.00028677,7]
[314406564,1708296646899,-300.0,0.00028727,2]
[314406565,1708296646908,-1000.0,0.00028735,7]
[314406566,1708296646917,-835.02,0.00028767,2]
[314406567,1708296646927,-167.13,0.00028767,2]
[314406568,1708296646936,-500.0,0.00028767,2]
[314406569,1708296646945,-500.0,0.00028767,2]
[314406570,1708296646955,-500.0,0.00028767,2]
[314406571,1708296646964,-500.0,0.00028767,2]
[314406572,1708296646974,-155.0,0.00028767,2]
[314406573,1708296646983,-588.55,0.00028767,2]
[314406574,1708296646992,-500.0,0.00028767,2]
[314406575,1708296647003,-500.0,0.00028767,2]
[314406576,1708296647012,-497.43,0.00028767,2]
[314406577,1708296647022,-500.0,0.00028767,2]
[314406578,1708296647031,-678.04,0.00028767,2]
[314406579,1708296647040,-4874.36,0.00028767,2]
[314406580,1708296647049,-500.0,0.00028767,2]
[314406581,1708296647059,-4159.06,0.00028767,2]
[314406582,1708296647069,-500.0,0.00028767,2]
[314406583,1708296647079,-579.78,0.00028767,2]
[314406584,1708296647089,-500.0,0.00028767,2]
[314406585,1708296647098,-633.01,0.00028767,2]
[314406586,1708296647107,-500.0,0.00028767,2]
[314406587,1708296647117,-775.0,0.00028767,2]
[314406588,1708296647127,-858.93,0.00028767,2]
[314406589,1708296647136,-4949.8,0.00028767,2]
[314406590,1708296647146,-500.0,0.00028767,2]
[314406591,1708296647156,-500.0,0.00028767,2]
[314406592,1708296647164,-500.0,0.00028767,2]
[314406593,1708296647174,-2740.77,0.00028767,2]
[314406594,1708296647184,-865.36,0.00028767,2]
[314406595,1708296647194,-1101.44,0.00028767,2]
[314406596,1708296647204,-3130.08,0.00028767,2]
[314406597,1708296647213,-500.0,0.00028767,2]
[314406598,1708296647222,-775.48,0.00028767,2]
[314406599,1708296647232,-977.56,0.00028767,2]
[314406600,1708296647242,-5459.19,0.00028767,2]
[314406601,1708296647252,-961.66,0.00028767,2]
[314406602,1708296647261,-500.0,0.00028767,2]
[314406603,1708296647272,-6277.19,0.00028767,2]
[314406604,1708296647283,-500.0,0.00028767,2]
[314406605,1708296647294,-640.18,0.00028767,2]
[314406606,1708296647304,-500.0,0.00028767,2]
[314406607,1708296647315,-894.19,0.00028767,2]
[314406608,1708296647325,-500.0,0.00028767,2]
[314406609,1708296647335,-473.9193304,0.00028767,2]
[314406610,1708296647346,-366.2599611,0.00028767,2]
[314406611,1708296647357,-400.694443,0.00028767,2]
[314406612,1708296647368,-200.3472215,0.00028767,2]
[314406613,1708296647380,-351.5,0.000288,2]
[314406614,1708296647391,-351.5,0.000288,2]
[314406615,1708296647401,-300.0,0.00028887,2]
[314406616,1708296647411,-150.54465542,0.00028899,2]
[314406617,1708296647423,-50000.0,0.00028952,5]
[314406618,1708296647433,-169.75427194,0.00028998,2]
[314406619,1708296647443,-562.25,0.00028999,2]
[314406620,1708296647453,-562.25,0.00028999,2]
[314406621,1708296647463,-562.25,0.00028999,2]
[314406622,1708296647476,-562.25,0.00028999,2]
[314406623,1708296647485,-562.25,0.00028999,2]
[314406624,1708296647496,-562.25,0.00028999,2]
[314406625,1708296647506,-702.84,0.00028999,2]
[314406626,1708296647516,-702.83,0.00028999,2]
[314406627,1708296647528,-417.72438225,0.00029,7]
[314406628,1708296647538,-1403.54567908,0.00029,2]
[314406629,1708296647549,-50000.0,0.00029,2]
[314406630,1708296647560,-1000.0,0.00029,29]
[314406631,1708296647569,-1000.0,0.00029,2]
[314406632,1708296647579,-5499.99999403,0.00029,2]
[314406633,1708296647589,-500.0,0.00029,3]
[314406634,1708296647598,-566.67729146,0.00029,2]
[314406635,1708296647607,-836.47359045,0.00029,2]
[314406636,1708296647616,-80307.0,0.00029,2]
[314406637,1708296647625,-6894.27158009,0.00029,2]
[314406638,1708296647635,-10013.21252538,0.00029,2]
[314406639,1708296647644,-835.02,0.00029041,2]
[314406640,1708296647654,-500.0,0.00029041,2]
[314406641,1708296647663,-500.0,0.00029041,2]
[314406642,1708296647673,-500.0,0.00029041,2]
[314406643,1708296647682,-500.0,0.00029041,2]
[314406644,1708296647691,-588.55,0.00029041,2]
[314406645,1708296647700,-500.0,0.00029041,2]
[314406646,1708296647709,-500.0,0.00029041,2]
[314406647,1708296647718,-678.04,0.00029041,2]
[314406648,1708296647728,-4874.36,0.00029041,2]
[314406649,1708296647738,-500.0,0.00029041,2]
[314406650,1708296647747,-4159.06,0.00029041,2]
[314406651,1708296647756,-500.0,0.00029041,2]
[314406652,1708296647767,-579.78,0.00029041,2]
[314406653,1708296647777,-500.0,0.00029041,2]
[314406654,1708296647786,-633.01,0.00029041,2]
[314406655,1708296647795,-500.0,0.00029041,2]
[314406656,1708296647804,-775.0,0.00029041,2]
[314406657,1708296647814,-858.93,0.00029041,2]
[314406658,1708296647823,-4949.8,0.00029041,2]
[314406659,1708296647833,-500.0,0.00029041,2]
[314406660,1708296647843,-500.0,0.00029041,2]
[314406661,1708296647852,-500.0,0.00029041,2]
[314406662,1708296647862,-2740.77,0.00029041,2]
[314406663,1708296647871,-865.36,0.00029041,2]
[314406664,1708296647880,-1101.44,0.00029041,2]
[314406665,1708296647889,-3130.08,0.00029041,2]
[314406666,1708296647899,-500.0,0.00029041,2]
[314406667,1708296647908,-775.48,0.00029041,2]
[314406668,1708296647917,-977.56,0.00029041,2]
[314406669,1708296647926,-5459.19,0.00029041,2]
[314406670,1708296647935,-961.66,0.00029041,2]
[314406671,1708296647945,-500.0,0.00029041,2]
[314406672,1708296647954,-6277.19,0.00029041,2]
[314406673,1708296647963,-500.0,0.00029041,2]
[314406674,1708296647973,-640.18,0.00029041,2]
[314406675,1708296647982,-500.0,0.00029041,2]
[314406676,1708296647991,-894.19,0.00029041,2]
[314406677,1708296648001,-300.0,0.00029046,2]
[314406678,1708296648012,-300.0,0.00029206,2]
[314406679,1708296648022,-3967.2052401,0.000293,2]
[314406680,1708296648031,-835.02,0.00029315,2]
[314406681,1708296648041,-500.0,0.00029315,2]
[314406682,1708296648051,-500.0,0.00029315,2]
[314406683,1708296648060,-500.0,0.00029315,2]
[314406684,1708296648069,-500.0,0.00029315,2]
[314406685,1708296648078,-588.55,0.00029315,2]
[314406686,1708296648087,-500.0,0.00029315,2]
[314406687,1708296648097,-500.0,0.00029315,2]
[314406688,1708296648106,-678.04,0.00029315,2]
[314406689,1708296648116,-4874.36,0.00029315,2]
[314406690,1708296648126,-500.0,0.00029315,2]
[314406691,1708296648135,-4159.06,0.00029315,2]
[314406692,1708296648145,-500.0,0.00029315,2]
[314406693,1708296648154,-579.78,0.00029315,2]
[314406694,1708296648163,-500.0,0.00029315,2]
[314406695,1708296648173,-633.01,0.00029315,2]
[314406696,1708296648182,-500.0,0.00029315,2]
[314406697,1708296648191,-775.0,0.00029315,2]
[314406698,1708296648200,-858.93,0.00029315,2]
[314406699,1708296648209,-4949.8,0.00029315,2]
[314406700,1708296648219,-500.0,0.00029315,2]
[314406701,1708296648229,-500.0,0.00029315,2]
[314406702,1708296648239,-500.0,0.00029315,2]
[314406703,1708296648249,-2740.77,0.00029315,2]
[314406704,1708296648259,-865.36,0.00029315,2]
[314406705,1708296648270,-1101.44,0.00029315,2]
[314406706,1708296648281,-3130.08,0.00029315,2]
[314406707,1708296648290,-500.0,0.00029315,2]
[314406708,1708296648300,-775.48,0.00029315,2]
[314406709,1708296648321,-977.56,0.00029315,2]
[314406710,1708296648331,-5459.19,0.00029315,2]
[314406711,1708296648341,-961.66,0.00029315,2]
[314406712,1708296648351,-500.0,0.00029315,2]
[314406713,1708296648360,-6277.19,0.00029315,2]
[314406714,1708296648370,-640.18,0.00029315,2]
[314406715,1708296648380,-500.0,0.00029315,2]
[314406716,1708296648390,-894.19,0.00029315,2]
[314406717,1708296648399,-300.0,0.00029365,2]
[314406718,1708296648409,-500.29977514,0.000295,2]
[314406719,1708296648419,-620.08640385,0.00029502,2]
[314406720,1708296648428,-300.0,0.00029525,2]
[314406721,1708296648438,-273.55227487,0.00029587,2]
[314406722,1708296648448,-835.02,0.00029589,2]
[314406723,1708296648457,-500.0,0.00029589,2]
[314406724,1708296648467,-500.0,0.00029589,2]
[314406725,1708296648479,-500.0,0.00029589,2]
[314406726,1708296648488,-500.0,0.00029589,2]
[314406727,1708296648498,-588.55,0.00029589,2]
[314406728,1708296648507,-542.51198868,0.00029589,2]
[314406729,1708296648518,-500.0,0.00029589,2]
[314406730,1708296648529,-4874.36,0.00029589,2]
[314406731,1708296648538,-678.04,0.00029589,2]
[314406732,1708296648547,-500.0,0.00029589,2]
[314406733,1708296648559,-4159.06,0.00029589,2]
[314406734,1708296648569,-500.0,0.00029589,2]
[314406735,1708296648580,-579.78,0.00029589,2]
[314406736,1708296648589,-500.0,0.00029589,2]
[314406737,1708296648701,-633.01,0.00029589,2]
[314406738,1708296648711,-500.0,0.00029589,2]
[314406739,1708296648721,-775.0,0.00029589,2]
[314406740,1708296648731,-858.93,0.00029589,2]
[314406741,1708296648740,-4949.8,0.00029589,2]
[314406742,1708296648750,-500.0,0.00029589,2]
[314406743,1708296648760,-500.0,0.00029589,2]
[314406744,1708296648770,-500.0,0.00029589,2]
[314406745,1708296648780,-2740.77,0.00029589,2]
[314406746,1708296648790,-865.36,0.00029589,2]
[314406747,1708296648800,-3130.08,0.00029589,2]
[314406748,1708296648810,-1101.44,0.00029589,2]
[314406749,1708296648820,-500.0,0.00029589,2]
[314406750,1708296648831,-775.48,0.00029589,2]
[314406751,1708296648840,-977.56,0.00029589,2]
[314406752,1708296648849,-5459.19,0.00029589,2]
[314406753,1708296648858,-961.66,0.00029589,2]
[314406754,1708296648867,-500.0,0.00029589,2]
[314406755,1708296648877,-6277.19,0.00029589,2]
[314406756,1708296648886,-640.18,0.00029589,2]
[314406757,1708296648895,-500.0,0.00029589,2]
[314406758,1708296648904,-894.19,0.00029589,2]
[314406759,1708296648913,-309.6291676,0.00029589,2]
[314406760,1708296648922,-401.7871182,0.00029589,2]
[314406761,1708296648931,-400.1957503,0.00029589,2]
[314406762,1708296648940,-200.3472215,0.00029589,2]
[314406763,1708296648950,-200.3472215,0.00029589,2]
[314406764,1708296648959,-306.0,0.00029589,2]
[314406765,1708296648968,-300.0,0.00029684,2]
[314406766,1708296648977,-1500.0,0.000297,2]
[314406767,1708296648986,-1500.0,0.000297,2]
[314406768,1708296648995,-1503.73,0.000297,2]
[314406769,1708296649004,-375.91583777,0.000297,2]
[314406770,1708296649014,-7000.0,0.000297,2]
[314406771,1708296649023,-7000.0,0.000297,2]
[314406772,1708296649032,-16275.97591823,0.0002975,2]
[314406773,1708296649041,-50000.0,0.00029782,5]
[314406774,1708296649051,-300.0,0.00029844,2]
[314406775,1708296649060,-835.02,0.00029863,2]
[314406776,1708296649069,-500.0,0.00029863,2]
[314406777,1708296649078,-500.0,0.00029863,2]
[314406778,1708296649088,-500.0,0.00029863,2]
[314406779,1708296649097,-500.0,0.00029863,2]
[314406780,1708296649108,-588.55,0.00029863,2]
[314406781,1708296649117,-500.0,0.00029863,2]
[314406782,1708296649128,-4874.36,0.00029863,2]
[314406783,1708296649139,-678.04,0.00029863,2]
[314406784,1708296649148,-500.0,0.00029863,2]
[314406785,1708296649159,-4159.06,0.00029863,2]
[314406786,1708296649169,-500.0,0.00029863,2]
[314406787,1708296649178,-579.78,0.00029863,2]
[314406788,1708296649188,-500.0,0.00029863,2]
[314406789,1708296649197,-633.01,0.00029863,2]
[314406790,1708296649206,-500.0,0.00029863,2]
[314406791,1708296649218,-775.0,0.00029863,2]
[314406792,1708296649229,-858.93,0.00029863,2]
[314406793,1708296649238,-4949.8,0.00029863,2]
[314406794,1708296649247,-500.0,0.00029863,2]
[314406795,1708296649256,-500.0,0.00029863,2]
[314406796,1708296649265,-500.0,0.00029863,2]
[314406797,1708296649274,-2740.77,0.00029863,2]
[314406798,1708296649283,-865.36,0.00029863,2]
[314406799,1708296649293,-1101.44,0.00029863,2]
[314406800,1708296649302,-3130.08,0.00029863,2]
[314406801,1708296649312,-500.0,0.00029863,2]
[314406802,1708296649321,-775.48,0.00029863,2]
[314406803,1708296649331,-977.56,0.00029863,2]
[314406804,1708296649340,-5459.19,0.00029863,2]
[314406805,1708296649350,-961.66,0.00029863,2]
[314406806,1708296649358,-500.0,0.00029863,2]
[314406807,1708296649367,-6277.19,0.00029863,2]
[314406808,1708296649377,-640.18,0.00029863,2]
[314406809,1708296649386,-500.0,0.00029863,2]
[314406810,1708296649395,-894.19,0.00029863,2]
[314406811,1708296649404,-183.69,0.00029865,2]
[314406812,1708296649414,-21856.77737097,0.000299,2]
[314406813,1708296649423,-2277.70656453,0.000299,2]
[314406814,1708296649432,-7047.100746,0.000299,2]
[314406815,1708296649442,-1000.0,0.00029915,7]
[314406816,1708296649451,-1000.0,0.00029915,7]
[314406817,1708296649460,-1000.0,0.00029915,7]
[314406818,1708296649470,-10055.56500111,0.00029937,2]
[314406819,1708296649483,-175152.67544413,0.0002999,10]
[314406820,1708296649492,-694.14,0.00029997,2]
[314406821,1708296649502,-624.73,0.00029997,2]
[314406822,1708296649512,-522.245003,0.00029998,2]
[314406823,1708296649523,-1258.16722318,0.00029998,2]
[314406824,1708296649533,-843.42,0.00029999,2]
[314406825,1708296649542,-3156.32,0.0003,2]
[314406826,1708296649555,-244.38418428,0.0003,4]
[314406827,1708296649565,-1020.05390563,0.0003,2]
[314406828,1708296649574,-286.38663128,0.0003,2]
[314406829,1708296649585,-345.43570352,0.0003,2]
[314406830,1708296649595,-500.0,0.0003,2]
[314406831,1708296649606,-323.5335649,0.0003,2]
[314406832,1708296649616,-250.0,0.0003,30]
[314406833,1708296649627,-1000.0,0.0003,30]
[314406834,1708296649636,-32188.4799074,0.0003,4]
[314406835,1708296649646,-531.53967277,0.0003,7]
[314406836,1708296649656,-1227.82597185,0.0003,2]
[314406837,1708296649665,-95773.72212504,0.0003,30]
[314406838,1708296649768,-0.00398364,0.0003,30]
[314406839,1708296649938,-166.57013905,0.00028218,2]
[314406840,1708296649947,-10965.81800287,0.0003,30]
[314406841,1708296649958,-465.84474854,0.0003,30]
[314406847,1708296856230,382.89121651,0.000176,2]
[314406849,1708296880902,5282.97100816,0.000176,2]
[314406850,1708296897358,5282.97100816,0.000176,2]
[314406851,1708296913360,5282.97100816,0.000176,2]
[314406852,1708296931373,5282.97100816,0.000176,2]
[314406853,1708296947379,5282.97100816,0.000176,2]
[314406854,1708296969874,2536.06559896,0.000176,2]
[314406891,1708297832282,-324.60333618,0.00020896,2]
[314406893,1708297832292,-281.13639612,0.00020896,2]
[314406894,1708297832302,-3916.07605408,0.00020897,2]
[314406896,1708297832311,-6911.12055455,0.00021,2]
[314406898,1708297832320,-31028.96739581,0.00021,2]
[314406900,1708297832333,-9904.80264256,0.00021,2]
[314406902,1708297832343,-1054.4699474,0.00021,2]
[314406903,1708297832352,-195.19691797,0.00021,2]
[314406905,1708297832361,-169.133355,0.00021348,2]
[314406907,1708297832370,-295.12626262,0.00022,2]
[314406908,1708297832380,-309.794155,0.00022,2]
[314406909,1708297832389,-8981.51670191,0.00022069,3]
[314407238,1708297841578,-2907.85630109,0.00022059,3]
[314407332,1708297843265,-6016.18369891,0.00022059,3]
[314407334,1708297843274,-3869.09329809,0.00022069,3]
[314407335,1708297843284,-4432.23612226,0.00022069,3]
[314407338,1708297843326,-6276.60387774,0.00022069,3]
[314407340,1708297843336,-24900.0,0.00022079,2]
[314407342,1708297843346,-177.82123,0.00022942,2]
[314407344,1708297843354,-166.666668,0.00024658,2]
[314407346,1708297843363,-4743.35422364,0.00025,2]
[314407348,1708297843372,-3922.29802284,0.00025911,2]
[314407350,1708297843381,-1000.0,0.00026214,3]
[314407352,1708297843391,-2239.37136499,0.00026401,3]
[314407354,1708297843400,-279.32240505,0.00026401,2]
[314407356,1708297843409,-332.2636654,0.00026401,3]
[314407358,1708297843418,-188.59205218,0.00026401,3]
[314407360,1708297843427,-500.0,0.00027095,2]
[314407362,1708297843436,-220208.23408091,0.00027096,2]
[314407364,1708297843445,-4325.94594478,0.00027351,2]
[314407366,1708297843454,-2439.47197119,0.00027351,2]
[314407368,1708297843463,-2028.0624106,0.00027351,2]
[314407370,1708297843472,-2734.23065626,0.00027351,2]
[314407372,1708297843482,-500.0,0.00027397,2]
[314407374,1708297843491,-500.0,0.00027397,2]
[314407376,1708297843500,-500.0,0.00027397,2]
[314407378,1708297843508,-500.0,0.00027397,2]
[314407380,1708297843517,-504.83236581,0.00027397,2]
[314407382,1708297843526,-500.0,0.00027397,2]
[314407384,1708297843535,-500.0,0.00027397,2]
[314407386,1708297843544,-155.0,0.00027397,2]
[314407388,1708297843553,-507.20592156,0.00027397,2]
[314407390,1708297843562,-500.0,0.00027397,2]
[314407392,1708297843570,-2426.12,0.00027397,2]
[314407394,1708297843580,-500.0,0.00027397,2]
[314407395,1708297843597,-500.0,0.00027397,2]
[314407397,1708297843606,-500.0,0.00027397,2]
[314407399,1708297843619,-500.0,0.00027397,2]
[314407401,1708297843629,-500.0,0.00027397,2]
[314407403,1708297843638,-500.0,0.00027397,2]
[314407405,1708297843647,-500.0,0.00027397,2]
[314407407,1708297843656,-500.0,0.00027397,2]
[314407409,1708297843666,-2887.38,0.00027397,2]
[314407411,1708297843675,-534.15,0.00027397,2]
[314407413,1708297843684,-500.0,0.00027397,2]
[314407415,1708297843693,-500.0,0.00027397,2]
[314407417,1708297843704,-1598.78,0.00027397,2]
[314407419,1708297843713,-1825.88,0.00027397,2]
[314407421,1708297843723,-500.0,0.00027397,2]
[314407423,1708297843732,-3184.53,0.00027397,2]
[314407425,1708297843741,-642.51,0.00027397,2]
[314407427,1708297843750,-570.24,0.00027397,2]
[314407429,1708297843761,-500.0,0.00027397,2]
[314407431,1708297843771,-504.8,0.00027397,2]
[314407433,1708297843780,-560.96,0.00027397,2]
[314407435,1708297843790,-500.0,0.00027397,2]
[314407437,1708297843799,-3661.7,0.00027397,2]
[314407439,1708297843808,-500.0,0.00027397,2]
[314407441,1708297843818,-500.0,0.00027397,2]
[314407444,1708297843830,-500.0,0.00027397,2]
[314407446,1708297843840,-2843.38,0.00027397,2]
[314407458,1708297843849,-531.18,0.00027397,2]
[314407460,1708297843959,-500.0,0.00027397,2]
[314407462,1708297843968,-500.0,0.00027397,2]
[314407464,1708297843978,-501.95411402,0.00027397,2]
[314407466,1708297843988,-166.666668,0.00027542,2]
[314407468,1708297843998,-500.0,0.00027671,2]
[314407470,1708297844008,-500.0,0.00027671,2]
[314407472,1708297844017,-500.0,0.00027671,2]
[314407474,1708297844027,-533.94,0.00027671,2]
[314407476,1708297844036,-500.0,0.00027671,2]
[314407478,1708297844046,-500.0,0.00027671,2]
[314407480,1708297844057,-2426.12,0.00027671,2]
[314407482,1708297844067,-500.0,0.00027671,2]
[314407484,1708297844077,-500.0,0.00027671,2]
[314407486,1708297844087,-500.0,0.00027671,2]
[314407488,1708297844096,-500.0,0.00027671,2]
[314407490,1708297844106,-500.0,0.00027671,2]
[314407492,1708297844116,-500.0,0.00027671,2]
[314407494,1708297844125,-500.0,0.00027671,2]
[314407496,1708297844135,-500.0,0.00027671,2]
[314407498,1708297844145,-2887.38,0.00027671,2]
[314407500,1708297844154,-534.15,0.00027671,2]
[314407502,1708297844163,-500.0,0.00027671,2]
[314407504,1708297844173,-500.0,0.00027671,2]
[314407506,1708297844182,-1598.78,0.00027671,2]
[314407508,1708297844191,-1825.88,0.00027671,2]
[314407510,1708297844200,-500.0,0.00027671,2]
[314407511,1708297844210,-3184.53,0.00027671,2]
[314407513,1708297844219,-642.51,0.00027671,2]
[314407514,1708297844228,-570.24,0.00027671,2]
[314407516,1708297844237,-500.0,0.00027671,2]
[314407518,1708297844246,-504.8,0.00027671,2]
[314407520,1708297844256,-560.96,0.00027671,2]
[314407522,1708297844266,-500.0,0.00027671,2]
[314407524,1708297844274,-3661.7,0.00027671,2]
[314407526,1708297844284,-500.0,0.00027671,2]
[314407528,1708297844293,-500.0,0.00027671,2]
[314407530,1708297844303,-242.73770073,0.00027671,2]
[314407532,1708297844312,-2843.38,0.00027671,2]
[314407534,1708297844321,-531.18,0.00027671,2]
[314407536,1708297844330,-500.0,0.00027671,2]
[314407538,1708297844339,-974.23251705,0.00027682,2]
[314407540,1708297844348,-150.29686133,0.00027717,2]
[314407542,1708297844357,-500.0,0.00027945,2]
[314407544,1708297844367,-500.0,0.00027945,2]
[314407546,1708297844376,-500.0,0.00027945,2]
[314407548,1708297844385,-500.0,0.00027945,2]
[314407550,1708297844394,-500.0,0.00027945,2]
[314407552,1708297844403,-2426.12,0.00027945,2]
[314407554,1708297844412,-500.0,0.00027945,2]
[314407556,1708297844420,-500.0,0.00027945,2]
[314407557,1708297844429,-500.0,0.00027945,2]